Cogmind - Beta 13 @@@ ROGUE MODE // 2024.04.03 @ 18:33:35 Player: SovietPaperclip Result: Self-destructed Performance ------------- Evolutions (1) 500 Regions Visited (2) 400 Robots Destroyed (24) 120 Value Destroyed (564) 564 Prototype IDs (1) 20 Alien Tech Used (0) 0 Bonus (0) 0 TOTAL SCORE: 1604 Bonus ------- None Cogmind --------- Core Integrity 303/400 Matter 274/300 Energy 250/250 System Corruption 0% Temperature Cool (0) Movement Treading (160) Location -9/Materials Parts ------- > --- POWER (1) -------- Ion Engine > --- PROPULSION (3) --- Light Treads Light Treads Light Treads > --- UTILITY (3) ------ Small Storage Unit Medium Storage Unit Light Armor Plating > --- WEAPON (2) ------- Light Assault Rifle Mini Grenade Launcher > --- INVENTORY (10) --- Ion Engine Light Treads ECM Suite Mini Grenade Launcher Mini Grenade Launcher Mini Grenade Launcher Peak State ------------ > --- POWER ------------ Ion Engine > --- PROPULSION ------- Light Treads Light Treads Light Treads > --- UTILITY ---------- Small Storage Unit Light Armor Plating > --- WEAPON ----------- Light Assault Rifle Mini Grenade Launcher > --- INVENTORY -------- Ion Engine Light Treads Medium Storage Unit ECM Suite Mini Grenade Launcher Mini Grenade Launcher Mini Grenade Launcher [Rating: 10] Favorites ----------- Power Ion Engine Engine Ion Engine Propulsion Light Treads Treads Light Treads Utility Small Storage Unit Storage Small Storage Unit Protection Light Armor Plating Weapon Light Assault Rifle Energy Gun EM Pulse Gun Ballistic Gun Light Assault Rifle Launcher Mini Grenade Launcher Build | -11 -10 -9 ------- Run | Yrd Mat Mat Slots Evolved 2 | . . 2 Power . | . . . Propulsion 1 | . . 1 Utility 1 | . . 1 Weapon . | . . . Parts Attached 22 | 8 11 3 Power 2 | 2 . . Engine 2 | 2 . . Core . | . . . Reactor . | . . . Propulsion 5 | 2 2 1 Treads 5 | 2 2 1 Leg . | . . . Wheel . | . . . Hover . | . . . Flight . | . . . Utility 3 | 1 1 1 Device . | . . . Storage 2 | 1 . 1 Processor . | . . . Hackware . | . . . Protection 1 | . 1 . Artifact . | . . . Weapon 12 | 3 8 1 Energy Gun 2 | 1 1 . Energy Cannon . | . . . Ballistic Gun 8 | 2 6 . Ballistic Cannon . | . . . Launcher 2 | . 1 1 Special Weapon . | . . . Impact Weapon . | . . . Slashing Weapon . | . . . Piercing Weapon . | . . . Special Melee Weapon . | . . . Unidentified Prototypes 1 | . 1 . Parts Lost 1 | . 1 . Power . | . . . Propulsion . | . . . Utility . | . . . Weapon 1 | . 1 . Highest Loss Streak 1 | . 1 . To Critical Strikes . | . . . Average Slot Usage (%) 87 | . 87 88 Engine 13 | . 14 11 Treads 28 | . 27 33 Storage 13 | . 14 12 Protection 5 | . 4 11 Ballistic Gun 22 | . 22 11 Launcher 3 | . 2 9 Naked Turns . | . . . Heaviest Build 25 | 13 16 25 Greatest Support 60 | 40 40 60 Greatest Overweight (x) . | . . . Average Overweight (x) . | . . . Largest Inventory Capacity 10 | 8 8 10 Average Capacity 7 | 7 8 8 Most Carried 8 | 4 8 7 Average Carried 6 | . 7 6 Final Capacity 10 | 8 8 10 Final Carried 8 | 1 8 6 Class Distribution -------------------- 100% | Mutant Dominant Class ---------------- Mutant | -10/Materials Mutant | -9/Materials Resources | -11 -10 -9 ----------- Run | Yrd Mat Mat Matter Collected 707 | 209 465 33 Remotely . | . . . Salvage Created 660 | . 535 125 Parts 37 | . 29 8 Haulers Intercepted 2 | . 1 1 Recyclers Shooed 1 | . . 1 Parts Field Recycled . | . . . Retrieved Matter . | . . . Parts Self-Destructed . | . . . Prevented . | . . . Kills | -11 -10 -9 ------- Run | Yrd Mat Mat Combat Hostiles Destroyed 10 | . 10 . Guns 8 | . 8 . AOE 2 | . 2 . Classes Destroyed 8 | . 8 . Worker 1 | . 1 . Builder 3 | . 3 . Hauler 2 | . 1 1 Recycler 2 | . 1 1 Mechanic 1 | . 1 . Operator 3 | . 2 1 Watcher 2 | . 1 1 Grunt 10 | . 10 . Best Kill Streak 10 | . 10 3 Combat Bots Only 6 | . 6 . Max Kills in Single Turn 4 | . 4 1 Gunslinging 1 | . 1 . Exploded 1 | . 1 . Melee . | . . . Uniques/NPCs Destroyed . | . . . Combat | -11 -10 -9 -------- Run | Yrd Mat Mat Hostile Shots Fired 51 | . 51 . Missed 11 | . 11 . Damage Taken 701 | . 528 173 Core 212 | . 115 97 Absorbed by Shields . | . . . Core Remaining (%) 77 | 100 54 . Volleys Fired 83 | . 74 9 Largest 2 | . 2 2 Hottest 50 | . 40 50 Shots Fired 136 | . 125 11 Gun 128 | . 119 9 Cannon . | . . . Launcher 8 | . 6 2 Special . | . . . Kinetic 128 | . 119 9 Thermal . | . . . Explosive 8 | . 6 2 Electromagnetic . | . . . Robot Hit Streak 18 | . 18 2 Robot Miss Streak 4 | . 4 2 Penetration Max . | . . . Secondary Targets 1 | . 1 . Max Gunslinging Chain 1 | . 1 . Shots Hit Robots 95 | . 91 4 Core Hits 44 | . 39 5 Critical Kills . | . . . Critical Parts Destroyed 1 | . 1 . Critical Strikes 1 | . 1 . Destroy 1 | . 1 . Melee Attacks . | . . . Impact . | . . . Slashing . | . . . Piercing . | . . . Sneak Attacks . | . . . Combat Hostiles . | . . . Follow-up Attacks . | . . . Damage Inflicted 1720 | . 1483 237 Guns 974 | . 947 27 Cannons . | . . . Explosions 741 | . 531 210 Melee . | . . . Ramming 5 | . 5 . Kinetic 974 | . 947 27 Thermal 112 | . . 112 Explosive 629 | . 531 98 Electromagnetic . | . . . Impact . | . . . Slashing . | . . . Piercing . | . . . Highest Corruption . | . . . Average Corruption . | . . . Corruption Purged . | . . . Corruption Blocked . | . . . Overload Shots . | . . . Overflow Damage . | . . . Projectiles . | . . . Explosions . | . . . Melee . | . . . Knockbacks . | . . . Impact . | . . . Kinetic . | . . . Secondary . | . . . Self-Inflicted Damage . | . . . Shots . | . . . Rammed 2 | . 2 . Targets Rammed 2 | . 2 . Kicked . | . . . Crushed . | . . . Highest Temperature 45 | . 45 10 Average Temperature 17 | . 17 7 Received Heat Transfer 297 | . 297 . Siege Activations . | . . . Robots Corrupted . | . . . Combat Hostiles . | . . . Parts Fried . | . . . Impact Corruptions . | . . . Robots Melted . | . . . Combat Hostiles . | . . . Parts Melted . | . . . Heat Transferred 100 | . . 100 Parts Sabotaged . | . . . Parts Stolen . | . . . Parts Stripped . | . . . Power Chain Reactions . | . . . Alert | -11 -10 -9 ------- Run | Yrd Mat Mat Peak Influence 345 | . 345 211 Initial 81 | . . 81 Average 95 | . 99 169 Maximum Alert Level 1 | . 1 1 Low Security (%) 87 | 100 86 74 Level 1 12 | . 13 25 Level 2 . | . . . Level 3 . | . . . Level 4 . | . . . Level 5 . | . . . High Security . | . . . Max Security . | . . . Squads Dispatched 2 | . 2 . Investigation . | . . . Extermination . | . . . Reinforcement 2 | . 2 . Assault . | . . . Garrison . | . . . Intercept . | . . . Searches Triggered . | . . . Construction Impeded . | . . . Haulers Reinforced . | . . . Active Scanning Responses . | . . . Cargo Convoy Interrupts . | . . . Stealth | -11 -10 -9 --------- Run | Yrd Mat Mat Distress Signals 1 | . 1 . Communications Jammed . | . . . Distress Signals . | . . . Times Spotted 24 | . 22 2 Peak Tracking Total 5 | . 5 1 Tactical Retreats . | . . . Traps | -11 -10 -9 ------- Run | Yrd Mat Mat Traps Triggered 2 | . 2 . Indirectly . | . . . Trap Hack Attempts . | . . . Triggered . | . . . Disarmed . | . . . Reprogrammed 1 | . 1 . Reused . | . . . Traps Extracted . | . . . Installed . | . . . Triggered . | . . . Machines | -11 -10 -9 ---------- Run | Yrd Mat Mat Machines Disabled 6 | . 3 3 Max in Single Turn 3 | . 2 3 Machines Repaired . | . . . Machines Dismantled . | . . . Machines Sabotaged . | . . . Overloaded Fab Kills . | . . . Hacking | -11 -10 -9 --------- Run | Yrd Mat Mat Machines Accessed 3 | . 3 . Terminals 3 | . 3 . Fabricators . | . . . Repair Stations . | . . . Recycling Units . | . . . Scanalyzers . | . . . Garrison Access . | . . . Total Hacks 4 | . 4 . Successful 3 | . 3 . Failed 1 | . 1 . Catastrophic 1 | . 1 . Database Lockouts . | . . . Manual . | . . . Terminals 4 | . 4 . Fabricators . | . . . Repair Stations . | . . . Recycling Units . | . . . Scanalyzers . | . . . Garrison Access . | . . . Terminal Hacks 3 | . 3 . Locate Traps 2 | . 2 . Reprogram Traps 1 | . 1 . Fabricator Hacks . | . . . Repair Station Hacks . | . . . Recycling Unit Hacks . | . . . Scanalyzer . | . . . Garrison Access Hacks . | . . . Unauthorized Hacks . | . . . Terminals . | . . . Fabricators . | . . . Repair Stations . | . . . Recycling Units . | . . . Scanalyzers . | . . . Garrison Access . | . . . Data Cores Recovered . | . . . Used . | . . . Hacking Detections 1 | . 1 . Full Trace Events . | . . . Feedback Events . | . . . Feedback Blocked . | . . . Robot Schematics Acquired . | . . . Robots Built . | . . . Authchips . | . . . Time . | . . . Total Robot Build Rating . | . . . Part Schematics Acquired . | . . . Parts Built . | . . . Authchips . | . . . Time . | . . . Total Part Build Rating . | . . . Parts Repaired . | . . . Time . | . . . Parts Recycled . | . . . Recycled Matter . | . . . Retrieved Matter . | . . . Retrieved Components . | . . . Parts Scanalyzed . | . . . Part Schematics Acquired . | . . . Parts Damaged . | . . . Bothacking | -11 -10 -9 ------------ Run | Yrd Mat Mat Used RIF Installer . | . . . Robots Hacked . | . . . Non-combat . | . . . Combat . | . . . Robot Hacks Applied . | . . . Relay Couplers Released . | . . . Fabnet Peak Effective % . | . . . Robots Rewired . | . . . Allies Hacked . | . . . Hacks Repelled . | . . . Allies | -11 -10 -9 -------- Run | Yrd Mat Mat Total Allies . | . . . Largest Group . | . . . Highest-Rated Group . | . . . Highest-Rated Ally . | . . . Total Orders . | . . . Ally Attacks . | . . . Total Damage . | . . . Kills . | . . . Allies Corrupted . | . . . Allies Melted . | . . . Intel | -11 -10 -9 ------- Run | Yrd Mat Mat Robot Analysis Total . | . . . Derelict Logs Recovered . | . . . Drone Launches . | . . . Drone Recoveries . | . . . Exploration | -11 -10 -9 ------------- Run | Yrd Mat Mat Turns Passed 1005 | 88 854 63 Spaces Moved 445 | 52 368 25 Core 12 | 12 . . Treads 433 | 40 368 25 Legs . | . . . Wheels . | . . . Hover . | . . . Flight . | . . . Fastest Speed 50 | 50 160 160 Average Speed 157 | 134 160 160 Slowest Speed 160 | 160 160 160 Overloaded Moves . | . . . Propulsion Burnouts . | . . . Robots Hopped . | . . . Cave-ins Triggered 1 | . . 1 Exploration Rate (%) 27 | 4 72 6 Regions Visited 2 Branch Regions . Pre-discovered Areas . | . . . Known Exits Taken . | . . . Unknown Exits Taken 2 | 1 1 . Scrap Searched . | . . . Spaces Dug . | . . . Terrain Destroyed 56 | . . 56 Melee . | . . . Projectile . | . . . AOE 56 | . . 56 Terrain Rammed . | . . . Walls Destroyed . | . . . Machines Disabled . | . . . Actions | -11 -10 -9 --------- Run | Yrd Mat Mat Total 630 | 70 522 38 Wait 46 | 2 44 . Move 443 | 51 367 25 Hop . | . . . Pick Up 27 | 8 18 1 Fast Attach . | . . . Attach 19 | 7 9 3 Detach 1 | . 1 . Swap 3 | 1 2 . Drop 6 | 1 5 . Fire 83 | . 74 9 Melee . | . . . Ram . | . . . Kick . | . . . Crush 2 | . 2 . Escape Stasis . | . . . Rewire . | . . . Trap . | . . . Miscellaneous . | . . . Route ------- -11/Scrapyard -10/Materials (discovered 2 exits: [*Mat] / [*Min]) -9/Materials History --------- Turn | Location | Event 2 | -11/Scrapyard | Discovered new exit (range 16) 89 | -11/Scrapyard | Entered Materials 205 | -10/Materials | Discovered new exit (range 16) 315 | -10/Materials | Build established: Mutant 883 | -10/Materials | Discovered new exit (range 12) 943 | -10/Materials | Entered another Materials area 943 | -9/Materials | Evolved 2 slots: Propulsion x1, Utility x1 1006 | -9/Materials | Crushed by falling debris 1006 | -9/Materials | Self-destructed Last Messages --------------- 00979_ U-05 Engineer lays Concrete. 00980_ U-05 Engineer builds a Wall. 00980_ U-05 Engineer lays Concrete. 00981_ U-05 Engineer builds a Wall. 00981_ U-05 Engineer lays Concrete. 00982_ U-05 Engineer builds a Wall. 00982_ R-06 Scavenger collects Lgt. Treads. 00985_ U-05 Engineer builds a Wall. 00985_ U-05 Engineer lays Concrete. 00990_ R-06 Scavenger destroyed. 00990_ U-05 Engineer builds a Wall. 00990_ U-05 Engineer lays Concrete. 00993_ The unstable cave ceiling collapses. 00993_ U-05 Engineer lays Concrete. 00996_ Acquired Med. Storage Unit. 00996_ U-05 Engineer lays Concrete. 00999_ Acquired 33 matter. 01000_ U-05 Engineer lays Concrete. 01006_ The unstable cave ceiling collapses. 01006_ Crushed by falling debris. Map ----- +----------------------------------------------------+ | ?????????????????????????????????????????????????? | | ?????????????????????????????????????????????????? | | ??????????????????????????#####??????????????????? | | ???????????????????????? """ ??????????????????? | | ????????????????????????""""" #?????????????????? | | ?????????????????????#??""""" #####?????????????? | | ?????????????????????# """"" # #?????????????? | | ?????????????????????# """ # #?????????????? | | ?????????????????????# # #?????????????? | | ?????????????????????# + #?????????????? | | ?????????????????????# / # #?????????????? | | ?????????????????????########### +?????????????? | | ?????????????????????########### #?????????????? | | ????????????????????## u " #?????????????? | | ????????????????????#" # #?????????????? | | ???????????????????##" # #?????????????? | | ???????????????????# " + #######???????? | | ???????????????????# " # ???? | | ?????????? #####"" u # ??? | | ??????????? " u # ???? | | ???????????????######" # ############+???? | | ????????????????????#"""] ] " ##?????????????? | | ????????????????????# ; #??????????????? | | ????????????????????##### #### " ##??????????????? | | ???????????????????????## ###### #???????????????? | | ???????????????????????# @# #??? #???????????????? | | ???????????????????????# w ##??? #???????????????? | | ??????????????????????# % #???? ???????????????? | | ??????????????????????# = #???? ???????????????? | | ????????????????????? != ????T ??????????????? | | ????????????????????#### ##???? ??????????????? | | ???????????????????????####?????? ?????????????? | | ?????????????????????????????????????????????????? | | ?????????????????????????????????????????????????? | | ?????????????????????????????????????????????????? | | ?????????????????????????????????????????????????? | | ?????????????????????????????????????????????????? | | ?????????????????????????????????????????????????? | | ?????????????????????????????????????????????????? | | ?????????????????????????????????????????????????? | | ?????????????????????????????????????????????????? | | ?????????????????????????????????????????????????? | | ?????????????????????????????????????????????????? | | ?????????????????????????????????????????????????? | | ?????????????????????????????????????????????????? | | ?????????????????????????????????????????????????? | | ?????????????????????????????????????????????????? | | ?????????????????????????????????????????????????? | | ?????????????????????????????????????????????????? | | ?????????????????????????????????????????????????? | +----------------------------------------------------+ Best States ------------- Heat Dissipation 28 Energy Generation 10 Energy Capacity 250 Matter Stores 300 Matter Capacity 300 Sight Range 16 Terrain Scan Density 10 Armor Coverage 150 Evasion (%) 50 Recoil Reduction 3 Item Schematics ----------------- None Robot Schematics ------------------ None Fabricated ------------ Nothing Alien Tech Used ----------------- None Achievements -------------- None Challenges ------------ None Game ------ Seed MicrowarpDecoderImmobilizer Manual? 0 Play Time 00:08:01 Cumulative 27.8 hours Start 2024.04.03 @ 18:26:04 End 2024.04.03 @ 18:33:35 Sessions 1 Manual Loads 0 Difficulty Rogue Special Mode None Game No. 42 Rogue 42 Adventurer 0 Explorer 0 Win Type - Total 1 Types 1/0/0/0/0/0/0/0/0 Lore% 18 Gallery% 22 Achievement% 23 Wizard Run 0 Options --------- Layout 1 ASCII 0 Keyboard 0 Movement Mouse Keybinds 0 Fullscreen 2 Font 32/Smallcaps Map View 50x40 Zoom Use 0% Tactical HUD 1 Map Filters NONE Filters NONE Steam 1 RUN: 49c06403-3b6b-4a6f-9c9f-8156163a37e1